bitfinex-derivatives/quotes_BTCF0:USTF0_20210108
["timestamp","ask_amount","ask_price","bid_price","bid_amount"]
[1610090724229,0.47577033,38495.0,38494.0,0.73214806]
[1610090724428,0.01600903,38495.0,38494.0,0.73214806]
[1610090725629,0.49166534,38495.0,38494.0,0.73214806]
[1610090725829,0.05256534,38495.0,38494.0,1.32504806]
[1610090726129,1.46073143,38510.0,38494.0,1.32504806]
[1610090726130,0.57071537,38498.0,38494.0,0.73214806]
[1610090726428,0.57067612,38504.0,38495.0,3.20150958]
[1610090726833,0.57053792,38508.0,38496.0,0.09580604]
[1610090727230,0.57050631,38509.0,38496.0,0.09580604]
[1610090727631,0.57026648,38513.0,38496.0,0.59580604]
[1610090727932,0.57026648,38513.0,38512.0,0.13632608]
[1610090728133,0.57025545,38514.0,38512.0,0.13632608]
[1610090728334,0.57025545,38514.0,38512.0,0.16846773]
[1610090728534,0.56997769,38515.0,38513.0,0.0321411]
[1610090728932,0.56997066,38516.0,38513.0,0.0321411]
[1610090729336,0.56992684,38517.0,38513.0,0.0321411]
[1610090729735,0.56966738,38518.0,38514.0,0.5]
[1610090729936,0.56966738,38518.0,38517.0,0.13632608]
[1610090730336,0.5696687,38519.0,38517.0,0.13632608]
[1610090730564,0.5696687,38519.0,38517.0,0.16846435]
[1610090731035,0.5696687,38519.0,38518.0,0.03213702]
[1610090731236,1.07803988,38522.0,38515.0,0.5]
[1610090731237,0.56938606,38520.0,38515.0,0.5]
[1610090731436,0.56938606,38520.0,38518.0,3.5595]
[1610090731637,0.95091332,38522.0,38518.0,3.5595]
[1610090731838,0.95091332,38522.0,38519.0,0.0321364]
[1610090732137,0.5690621,38523.0,38521.0,0.13632608]
[1610090732438,0.5690057,38527.0,38522.0,0.00031207]
[1610090732636,0.5690057,38527.0,38522.0,0.03213403]
[1610090732836,0.9507607,38527.0,38522.0,0.03213403]
[1610090733037,0.5690057,38527.0,38522.0,0.03213403]
[1610090733539,0.95075851,38527.0,38522.0,0.03213403]
[1610090733938,0.56835783,38528.0,38526.0,0.13632608]
[1610090734341,0.56831773,38529.0,38527.0,0.03213383]
[1610090735439,0.94979494,38530.0,38527.0,0.03213383]
[1610090735638,3.52886497,38531.0,38527.0,0.03213383]
[1610090735938,0.13632608,38528.0,38527.0,0.03213383]
[1610090739744,3.13432608,38528.0,38527.0,0.03213383]
[1610090740044,3.13432608,38528.0,38520.0,0.0321327]
[1610090740245,3.13432608,38528.0,38527.0,0.03213243]
[1610090740445,3.13432608,38528.0,38520.0,0.03213259]
[1610090740644,3.13432608,38528.0,38527.0,0.0321295]
[1610090740845,0.13632608,38528.0,38527.0,0.0321295]
[1610090741044,0.13632608,38528.0,38520.0,0.03212915]
[1610090741246,0.13632608,38528.0,38527.0,0.03212941]
[1610090741543,0.13632608,38528.0,38521.0,0.03212936]
[1610090741744,0.13632608,38528.0,38520.0,0.03212891]
[1610090741945,0.13632608,38521.0,38519.0,0.5]
[1610090742544,0.13632608,38521.0,38520.0,0.03212922]
[1610090745147,0.13632608,38521.0,38519.0,0.03212831]
[1610090745346,0.13632608,38521.0,38520.0,0.03212795]
[1610090745748,0.13632608,38521.0,38520.0,0.53212795]
[1610090746049,0.13632608,38521.0,38520.0,0.5]
[1610090746249,0.13632608,38521.0,38520.0,0.53212843]
[1610090746850,0.13632608,38521.0,38520.0,0.03212843]
[1610090747051,0.13632608,38521.0,38519.0,0.56363286]
[1610090747253,0.13632608,38521.0,38520.0,0.53212615]
[1610090747452,0.13632608,38521.0,38520.0,0.56425221]
[1610090751059,0.10782,38529.0,38520.0,0.56425221]
[1610090751259,0.56548677,38536.0,38520.0,0.56425221]
[1610090751464,0.5654372,38537.0,38521.0,0.03212282]
[1610090751660,0.5654372,38537.0,38521.0,0.09574335]
[1610090751861,0.56536538,38539.0,38521.0,0.09574335]
[1610090752062,0.56536538,38539.0,38530.0,0.13632608]
[1610090752463,0.56535193,38540.0,38531.0,0.03212138]
[1610090753064,0.5652406,38542.0,38531.0,0.03212138]
[1610090753263,0.5652406,38542.0,38531.0,0.53212138]
[1610090753464,0.56520522,38543.0,38531.0,0.53212138]
[1610090753863,0.56510485,38544.0,38532.0,0.53211982]
[1610090754063,0.56510485,38544.0,38535.0,0.13632608]
[1610090754264,0.56510485,38544.0,38536.0,0.0003119]
[1610090754464,0.56510485,38544.0,38536.0,0.03211765]
[1610090754967,0.56498859,38543.0,38536.0,0.03211765]
[1610090755165,0.56498859,38543.0,38536.0,0.53211765]
[1610090755368,0.08562,38543.0,38536.0,0.53211765]
[1610090755567,0.08562,38543.0,38537.0,0.5]
[1610090755767,0.08562,38543.0,38537.0,0.53211716]
[1610090755967,0.08562,38543.0,38538.0,0.03211695]
[1610090756167,0.47083044,38542.0,38538.0,0.03211695]
[1610090756367,0.47083044,38542.0,38538.0,0.53211695]
[1610090756868,0.08562,38543.0,38539.0,0.5]
[1610090757067,0.08562,38543.0,38539.0,0.53211333]
[1610090757270,0.08562,38543.0,38540.0,0.03211233]
[1610090757471,0.08562,38543.0,38540.0,0.5957139]
[1610090757769,0.08562,38543.0,38541.0,0.53211209]
[1610090757969,0.13632608,38542.0,38541.0,0.59571281]
[1610090758170,0.13632608,38542.0,38541.0,0.09571281]
[1610090758369,0.13632608,38542.0,38541.0,0.5]
[1610090758770,0.13632608,38542.0,38541.0,0.53211201]
[1610090759170,0.13632608,38542.0,38541.0,0.03211201]
[1610090759572,0.13632608,38542.0,38541.0,0.5]
[1610090759871,0.13632608,38542.0,38541.0,0.53211086]
[1610090760071,0.13632608,38542.0,38541.0,0.66843694]
[1610090760473,0.13632608,38542.0,38541.0,0.73203122]
[1610090762171,0.08562,38543.0,38541.0,0.73203122]
[1610090762372,0.13632608,38546.0,38541.0,0.73203122]
[1610090762575,0.13632608,38546.0,38542.0,0.09570192]
[1610090762773,0.47065134,38555.0,38542.0,0.09570192]
[1610090763076,0.47065134,38555.0,38545.0,3.0466]
[1610090763273,0.47059798,38559.0,38545.0,3.0466]
[1610090763472,0.47059798,38559.0,38546.0,0.03179148]
[1610090763674,0.47046234,38564.0,38546.0,0.09568619]
[1610090764274,0.47042953,38566.0,38563.0,0.13632608]
[1610090764473,0.47020114,38571.0,38563.0,0.13632608]
[1610090764674,0.47020114,38571.0,38564.0,0.03209929]
[1610090765178,0.47017627,38573.0,38564.0,0.03209929]
[1610090765375,0.47017627,38573.0,38564.0,0.53209929]
[1610090765575,0.4697613,38578.0,38564.0,0.53209929]
[1610090765975,0.4697613,38578.0,38563.0,0.13632608]
[1610090765976,0.46983527,38580.0,38565.0,0.53209475]
[1610090766174,0.46983527,38580.0,38576.0,0.13632608]
[1610090766378,0.46982749,38582.0,38576.0,0.13632608]
[1610090766774,0.38127572,38588.0,38576.0,0.13632608]
[1610090766775,0.46951828,38586.0,38577.0,0.0320922]
[1610090767178,0.4694977,38588.0,38577.0,0.0320922]
[1610090767577,0.46907315,38590.0,38577.0,0.0320922]
[1610090767978,0.46906327,38591.0,38577.0,0.0320922]
[1610090768179,0.13632608,38590.0,38587.0,0.13632608]
[1610090768476,0.13632608,38590.0,38588.0,0.00031158]
[1610090768477,0.10371,38590.0,38588.0,0.00031158]
[1610090771377,3.3602,38589.0,38588.0,0.00031158]
[1610090771583,3.3602,38589.0,38588.0,0.50031158]
[1610090771978,3.3602,38589.0,38588.0,0.5]
[1610090772178,3.49652608,38589.0,38588.0,0.50031156]
[1610090772381,3.49652608,38589.0,38588.0,0.00031156]
[1610090772779,0.13632608,38589.0,38588.0,0.00031156]
[1610090772981,0.13632608,38589.0,38573.0,4.0114]
[1610090773181,0.13632608,38589.0,38588.0,0.00031156]
[1610090773580,0.13632608,38589.0,38574.0,0.00031156]
[1610090773782,0.13632608,38589.0,38573.0,4.0114]
[1610090773980,0.13632608,38589.0,38575.0,0.00031155]
[1610090774183,0.13632608,38585.0,38584.0,0.13632608]
[1610090775482,3.24642608,38585.0,38584.0,0.13632608]
[1610090775682,3.24642608,38585.0,38562.0,0.11563]
[1610090775983,0.13632608,38585.0,38528.0,0.1569]
[1610090776250,0.10371,38590.0,38563.0,0.00031156]
[1610090776383,4.0756,38575.0,38541.0,0.03208122]
[1610090776582,0.4665898,38602.0,38557.0,0.12245]
[1610090776784,0.08958,38580.0,38564.0,0.00031154]
[1610090776983,4.1626,38566.0,38558.0,0.00031156]
[1610090777184,4.1626,38566.0,38565.0,0.00031156]
[1610090777586,4.1626,38566.0,38559.0,0.00031154]
[1610090777885,4.1626,38566.0,38565.0,0.00031109]
[1610090778088,4.29892608,38566.0,38565.0,0.13632608]
[1610090778287,4.29892608,38566.0,38565.0,0.13663717]
[1610090778487,0.10498,38572.0,38565.0,0.13632608]
[1610090778888,0.10498,38572.0,38566.0,0.00031109]
[1610090779489,0.08958,38580.0,38566.0,0.00031109]
[1610090780090,0.08958,38580.0,38579.0,0.13632608]
[1610090780695,0.08958,38580.0,38579.0,0.13663706]
[1610090781496,0.4659546,38580.0,38579.0,0.13663706]
[1610090784099,0.4659546,38580.0,38579.0,0.63663706]
[1610090784598,0.4659546,38580.0,38579.0,4.08843706]
[1610090785597,0.4659546,38580.0,38579.0,0.63663706]
[1610090788601,0.4659546,38580.0,38579.0,0.66838989]
[1610090790106,0.4659546,38580.0,38579.0,0.73189086]
[1610090790305,0.4659546,38580.0,38579.0,0.66838989]
[1610090791206,0.4659546,38580.0,38579.0,0.73189316]
[1610090800514,0.3763746,38580.0,38579.0,0.73189316]
[1610090810326,0.3763746,38580.0,38579.0,4.41209316]
[1610090810826,0.3763746,38580.0,38579.0,4.50730612]
[1610090811626,0.3763746,38580.0,38579.0,0.82710612]
[1610090812127,0.3763746,38580.0,38579.0,0.66838989]
[1610090812328,0.3763746,38580.0,38579.0,4.27878989]
[1610090812527,0.3763746,38580.0,38579.0,4.34226347]
[1610090812729,0.3763746,38580.0,38579.0,4.4374718]
[1610090813130,0.3763746,38580.0,38579.0,0.8270718]
[1610090813328,0.1993746,38580.0,38579.0,0.8270718]
[1610090813728,0.1993746,38580.0,38579.0,0.66838989]
[1610090813930,0.1993746,38580.0,38579.0,0.73186111]
[1610090814331,0.1993746,38580.0,38579.0,0.66838989]
[1610090821037,0.0759746,38580.0,38579.0,4.33318989]
[1610090821237,0.0759746,38580.0,38579.0,5.83318989]
[1610090821437,0.0759746,38580.0,38579.0,5.99184982]
[1610090822338,0.0759746,38580.0,38579.0,4.49184982]
[1610090822538,0.0759746,38580.0,38579.0,0.82704982]
[1610090822738,4.1145,38614.0,38579.0,0.82704982]
[1610090823039,4.1145,38614.0,38580.0,0.1569]
[1610090823237,4.1145,38614.0,38580.0,0.25239803]
[1610090823438,4.1145,38614.0,38581.0,0.03204057]
[1610090823639,4.1145,38614.0,38581.0,0.12520057]
[1610090823839,0.09211,38620.0,38581.0,0.12520057]
[1610090824041,0.09211,38620.0,38582.0,0.03204068]
[1610090824440,0.09211,38620.0,38615.0,0.13632608]
[1610090824839,0.09211,38620.0,38616.0,0.03204077]
[1610090825539,0.47073778,38630.0,38616.0,0.03204077]
[1610090826342,0.47081678,38632.0,38616.0,0.03204077]
[1610090826641,0.47081678,38632.0,38620.0,0.13632608]
[1610090826842,0.47081678,38632.0,38621.0,0.0320396]
[1610090827642,0.47085035,38633.0,38621.0,0.0320396]
[1610090828041,0.47085035,38633.0,38621.0,0.5320396]
[1610090828441,0.13632608,38622.0,38621.0,0.5]
[1610090828641,0.25142608,38622.0,38621.0,0.03203691]
[1610090829042,0.25142608,38622.0,38621.0,0.09548447]
[1610090829242,0.25142608,38622.0,38621.0,0.03203691]
[1610090830143,0.25142608,38622.0,38621.0,0.5]
[1610090830343,0.25142608,38622.0,38621.0,0.53203796]
[1610090830543,0.25142608,38622.0,38621.0,0.66836404]
[1610090830743,0.25142608,38622.0,38621.0,0.73181449]
[1610090831143,0.25142608,38622.0,38621.0,0.66836404]
[1610090831443,0.25142608,38622.0,38621.0,0.53203796]
[1610090833545,0.25142608,38622.0,38621.0,0.5]
[1610090833744,0.25142608,38622.0,38621.0,0.53172851]
[1610090834246,0.25142608,38622.0,38621.0,0.53204128]
[1610090834547,0.1151,38622.0,38621.0,0.53204128]
[1610090834749,0.1151,38622.0,38621.0,0.59549813]
[1610090834948,0.47082985,38631.0,38621.0,0.59549813]
[1610090835248,0.4708334,38633.0,38621.0,0.59549813]
[1610090835647,0.4708334,38633.0,38622.0,0.03204097]
[1610090836150,0.5649687,38635.0,38622.0,0.03204097]
[1610090836151,0.47081079,38635.0,38622.0,0.03204097]
[1610090836648,0.13632608,38636.0,38634.0,0.13632608]
[1610090836850,0.13632608,38636.0,38635.0,0.03203767]
[1610090837261,0.47082537,38638.0,38635.0,0.03203767]
[1610090837851,0.47082969,38641.0,38635.0,0.03203767]
[1610090838353,0.47077828,38644.0,38635.0,0.53203767]
[1610090838553,0.47077828,38644.0,38643.0,0.13632608]
[1610090838755,0.47080389,38645.0,38643.0,0.13632608]
[1610090838955,0.47080389,38645.0,38643.0,0.168355]
[1610090839157,0.47076058,38648.0,38644.0,0.031715]
[1610090839355,0.47076058,38648.0,38644.0,0.03202767]
[1610090839555,0.47062447,38652.0,38644.0,0.03202767]
[1610090839957,0.4706052,38654.0,38644.0,0.03202767]
[1610090840455,0.56469488,38656.0,38644.0,0.03202767]
[1610090840456,0.13632608,38655.0,38653.0,0.13632608]
[1610090841055,0.13632608,38655.0,38654.0,0.03202455]
[1610090841458,0.47040627,38658.0,38654.0,0.03202455]
[1610090841958,0.47012571,38661.0,38654.0,0.03202455]
[1610090842259,0.6894446,38666.0,38654.0,0.03202455]
[1610090842260,0.47009266,38666.0,38654.0,0.03202455]
[1610090842460,0.47009266,38666.0,38665.0,0.13632608]
[1610090842657,0.46972495,38669.0,38665.0,0.13632608]
[1610090842956,0.46972495,38669.0,38665.0,0.16834227]
[1610090843258,0.46971849,38672.0,38666.0,0.03201559]
[1610090843460,0.13632608,38673.0,38666.0,0.03201559]
[1610090844460,0.13632608,38673.0,38672.0,0.13632608]
[1610090844961,0.13632608,38673.0,38672.0,0.16833506]
[1610090845160,0.13632608,38673.0,38666.0,0.21237141]
[1610090845361,0.25314608,38673.0,38666.0,0.21237141]
[1610090845560,0.25314608,38673.0,38667.0,0.00031248]
[1610090845761,0.25314608,38673.0,38667.0,4.09051248]
[1610090846163,0.25314608,38673.0,38668.0,0.00031246]
[1610090846463,0.11682,38673.0,38672.0,0.13632608]
[1610090847162,0.11682,38673.0,38672.0,0.13663854]
[1610090849166,0.11682,38673.0,38672.0,0.63663854]
[1610090849365,0.11682,38673.0,38672.0,0.13663854]
[1610090849564,0.11682,38673.0,38672.0,0.63663854]
[1610090850267,0.01936721,38677.0,38672.0,0.63663854]
[1610090850565,0.13632608,38673.0,38672.0,0.50031246]
[1610090850767,0.13632608,38673.0,38672.0,0.5]
[1610090850966,0.24109608,38673.0,38672.0,0.5]
[1610090851166,0.24109608,38673.0,38672.0,0.5003187]
[1610090851766,0.24109608,38673.0,38672.0,0.0003187]
[1610090852369,0.24109608,38673.0,38655.0,0.0003187]
[1610090852569,0.24109608,38673.0,38672.0,0.0003187]
[1610090852971,0.24109608,38673.0,38656.0,0.0003187]
[1610090853270,0.24109608,38673.0,38648.0,0.00031872]
[1610090853470,0.24109608,38673.0,38672.0,0.5]
[1610090855273,0.24109608,38673.0,38655.0,0.5]
[1610090855772,0.24109608,38673.0,38656.0,0.50031874]
[1610090856176,0.24109608,38673.0,38657.0,0.00031874]
[1610090856374,0.24109608,38673.0,38672.0,0.5]
[1610090857374,0.24109608,38673.0,38672.0,0.50031872]
[1610090858477,0.24109608,38673.0,38672.0,0.00031872]
[1610090859179,0.24109608,38673.0,38672.0,0.50031867]
[1610090862081,0.10477,38673.0,38672.0,0.50031867]
[1610090862281,0.01936721,38677.0,38672.0,0.50031867]
[1610090862681,0.01936721,38677.0,38676.0,0.13632608]
[1610090863083,0.01936721,38677.0,38676.0,0.13664463]
[1610090864882,0.01936721,38677.0,38676.0,0.63664463]
[1610090865282,0.01936721,38677.0,38676.0,0.66831607]
[1610090869188,0.01936721,38677.0,38676.0,0.73165805]
[1610090873791,0.01936721,38677.0,38676.0,0.80901805]
[1610090876094,0.13632608,38694.0,38676.0,0.80901805]
[1610090876594,0.13632608,38694.0,38693.0,0.13632608]
[1610090877295,0.13632608,38694.0,38693.0,0.16830197]
[1610090877495,0.13632608,38694.0,38693.0,0.66830197]
[1610090878196,0.08289,38710.0,38693.0,0.66830197]
[1610090878597,0.08289,38710.0,38707.0,0.13632608]
[1610090878998,0.08289,38710.0,38708.0,0.00031837]
[1610090879698,0.08289,38710.0,38709.0,0.5]
[1610090880099,0.08289,38710.0,38709.0,0.50031837]
[1610090880699,0.13632608,38710.0,38709.0,0.50031837]
[1610090881999,0.13632608,38710.0,38709.0,0.33118746]
[1610090882902,3.31992608,38710.0,38709.0,0.33118746]
[1610090885006,3.31992608,38710.0,38709.0,0.09518746]
[1610090885209,0.22978608,38710.0,38709.0,0.09518746]
[1610090890915,0.22978608,38710.0,38709.0,0.12684378]
[1610090892717,0.22978608,38710.0,38709.0,0.26316986]
[1610090893719,0.09346,38710.0,38709.0,0.26316986]
[1610090894020,0.08915,38719.0,38709.0,0.26316986]
[1610090894518,0.08915,38719.0,38710.0,0.62736156]
[1610090894717,0.08915,38719.0,38718.0,0.13632608]
[1610090895117,0.11658,38728.0,38718.0,0.13632608]
[1610090895318,0.11658,38728.0,38718.0,0.16828271]
[1610090895618,0.01936721,38736.0,38719.0,0.03195391]
[1610090896619,0.01936721,38736.0,38735.0,0.13632608]
[1610090897122,0.01936721,38736.0,38735.0,0.16827046]
[1610090899922,0.01936721,38736.0,38735.0,0.66827046]
[1610090900220,0.01936721,38736.0,38735.0,0.63664412]
[1610090900821,0.01936721,38736.0,38735.0,0.66826612]
[1610090901123,0.01936721,38736.0,38735.0,0.53194004]
[1610090902626,0.15569329,38736.0,38735.0,0.53194004]
[1610090902825,0.15569329,38736.0,38735.0,0.50031804]
[1610090903225,0.15569329,38736.0,38735.0,0.53194252]
[1610090904528,0.15569329,38736.0,38735.0,0.50031804]
[1610090904729,0.15569329,38736.0,38735.0,0.63664412]
[1610090906835,0.01936721,38736.0,38735.0,0.63664412]
[1610090907436,0.01936721,38736.0,38735.0,0.6682667]
[1610090908935,0.01936721,38736.0,38735.0,0.72248412]
[1610090909234,0.01936721,38736.0,38735.0,0.75410298]
[1610090909437,0.01936721,38736.0,38735.0,0.72248412]
[1610090910636,0.01936721,38736.0,38735.0,0.75410385]
[1610090910836,0.01936721,38736.0,38735.0,0.72248412]
[1610090911038,0.01936721,38736.0,38735.0,0.75410353]
[1610090911437,0.01936721,38736.0,38735.0,0.72248412]
[1610090911838,0.01936721,38736.0,38735.0,0.63664412]
[1610090912338,0.01936721,38736.0,38735.0,0.50031804]
[1610090912739,0.15569329,38736.0,38735.0,0.50031804]
[1610090916745,0.15569329,38736.0,38735.0,0.63664412]
[1610090917642,0.01936721,38736.0,38735.0,0.66826899]
[1610090920245,0.01936721,38736.0,38735.0,0.73150876]
[1610090921447,0.01936721,38736.0,38735.0,0.74687899]
[1610090922943,0.13632608,38773.0,38735.0,0.74687899]
[1610090923145,0.13632608,38773.0,38745.0,3.3692]
[1610090923344,0.13632608,38773.0,38745.0,3.44859]
[1610090923645,0.11089,38779.0,38746.0,0.09514548]
[1610090924347,0.5582834,38793.0,38746.0,0.09514548]
[1610090924648,0.01936721,38795.0,38770.0,0.13632608]
[1610090924846,0.01936721,38795.0,38746.0,0.09514548]
[1610090926247,3.04511,38789.0,38746.0,0.03193054]
[1610090926747,0.13632608,38748.0,38747.0,0.03193156]
[1610090926947,0.13632608,38748.0,38746.0,0.0319326]
[1610090927146,0.13632608,38748.0,38747.0,0.03193464]
[1610090928749,0.07953,38753.0,38747.0,0.03193464]
[1610090928950,0.07953,38753.0,38747.0,0.53193464]
[1610090929549,0.07953,38753.0,38748.0,0.03193987]
[1610090929950,0.07953,38753.0,38748.0,0.5]
[1610090930149,0.55812956,38782.0,38748.0,0.5]
[1610090930350,0.55812956,38782.0,38749.0,0.03193798]
[1610090930650,0.13632608,38750.0,38749.0,0.03193798]
[1610090931250,0.13632608,38750.0,38747.0,0.03193706]
[1610090931550,0.13632608,38750.0,38749.0,0.03193777]
[1610090931950,0.13632608,38750.0,38748.0,0.03193773]
[1610090932151,0.11362,38762.0,38749.0,0.0319375]
[1610090932650,1.0855184,38802.0,38748.0,3.1386]
[1610090932651,0.13632608,38773.0,38761.0,0.13632608]
[1610090933251,0.13632608,38773.0,38762.0,0.03193247]
[1610090934753,0.13632608,38763.0,38762.0,0.03193247]
[1610090935053,0.13632608,38763.0,38756.0,0.0319319]
[1610090935352,0.13632608,38763.0,38762.0,0.03193183]
[1610090935655,0.13632608,38763.0,38757.0,0.03193314]
[1610090935853,0.13632608,38763.0,38762.0,0.03193328]
[1610090936153,0.13632608,38763.0,38753.0,0.03193283]
[1610090936354,0.13632608,38763.0,38762.0,0.03193205]
[1610090936556,0.13632608,38763.0,38754.0,0.03193148]
[1610090936756,0.13632608,38763.0,38761.0,0.13632608]
[1610090937157,0.13632608,38763.0,38762.0,0.03193096]
[1610090938158,0.13632608,38763.0,38762.0,0.53193096]
[1610090938556,0.08273,38769.0,38762.0,0.03193096]
[1610090938756,0.09485,38777.0,38768.0,0.13632608]
[1610090938757,0.13632608,38771.0,38768.0,0.13632608]
[1610090939362,0.13632608,38771.0,38769.0,0.03192386]
[1610090941762,0.13632608,38771.0,38770.0,0.5]
[1610090942162,0.13632608,38771.0,38770.0,0.53192484]
[1610090945966,4.0102,38803.0,38770.0,0.53192484]
[1610090945967,0.55883896,38800.0,38770.0,0.53192484]
[1610090946767,0.55883896,38800.0,38786.0,0.13632608]
[1610090946969,0.68299091,38803.0,38771.0,0.03191731]
[1610090946970,0.55904259,38802.0,38771.0,0.03191731]
[1610090947168,0.10261721,38795.0,38787.0,0.00032294]
[1610090947570,0.10261721,38795.0,38771.0,0.03191746]
[1610090947768,0.10261721,38795.0,38788.0,0.00032294]
[1610090947971,0.10261721,38795.0,38772.0,0.00032292]
[1610090948172,0.10261721,38795.0,38787.0,0.5]
[1610090948373,0.10261721,38795.0,38789.0,0.00032292]
[1610090948572,0.10261721,38795.0,38785.0,4.1138]
[1610090948775,0.55917232,38804.0,38794.0,0.13632608]
[1610090948975,0.55950704,38810.0,38794.0,0.13632608]
[1610090949174,0.55950704,38810.0,38805.0,3.1541]
[1610090949575,0.55931492,38817.0,38806.0,0.00032274]
[1610090949875,0.6835726,38820.0,38806.0,0.00032274]
[1610090950074,0.55932389,38838.0,38801.0,0.09528]
[1610090950278,0.55932389,38838.0,38815.0,4.2088]
[1610090950480,0.55841068,38845.0,38815.0,4.30636]
[1610090950674,0.55841068,38845.0,38815.0,0.09756]
[1610090950878,0.55872494,38843.0,38835.0,3.8631]
[1610090951076,0.55872494,38843.0,38816.0,0.03187652]
[1610090951280,0.87229652,38850.0,38816.0,0.03187652]
[1610090951281,0.55866305,38850.0,38816.0,3.59027652]
[1610090951776,0.55806442,38858.0,38817.0,0.09496134]
[1610090952077,0.86801549,38876.0,38817.0,0.09496134]
[1610090952278,1.09047377,38883.0,38817.0,0.09496134]
[1610090952678,0.01936721,38892.0,38817.0,0.09496134]
[1610090952882,0.01936721,38892.0,38820.0,0.13632608]
[1610090953477,0.01936721,38892.0,38821.0,0.03187281]
[1610090954679,0.01936721,38892.0,38821.0,0.00032248]
[1610090954879,0.01936721,38892.0,38833.0,0.13632608]
[1610090955279,0.01936721,38892.0,38822.0,0.00032252]
[1610090955479,0.01936721,38892.0,38834.0,0.00032252]
[1610090955879,0.01936721,38892.0,38822.0,0.5]
[1610090956079,4.29429,38872.0,38822.0,0.5]
[1610090956378,0.09259,38872.0,38825.0,0.11558]
[1610090956779,0.09259,38872.0,38857.0,0.13632608]
[1610090957078,0.09259,38872.0,38833.0,0.09337]
[1610090958680,0.09259,38872.0,38834.0,0.5]
[1610090958881,0.09259,38872.0,38853.0,0.13632608]
[1610090959282,0.09259,38872.0,38834.0,0.37462293]
[1610090959982,0.09259,38872.0,38854.0,0.5]
[1610090960485,0.09259,38872.0,38836.0,0.4871]
[1610090960682,0.09259,38872.0,38855.0,0.5]
[1610090961084,0.01936721,38892.0,38855.0,0.5]
[1610090962487,0.01936721,38892.0,38837.0,0.5]
[1610090962888,0.13632608,38838.0,38836.0,0.4871]
[1610090963087,0.22499608,38838.0,38836.0,0.4871]
[1610090963287,0.08867,38838.0,38836.0,0.4871]
[1610090963688,0.08867,38838.0,38827.0,0.13632608]
[1610090963889,0.08867,38838.0,38837.0,0.5]
[1610090964291,0.08731,38851.0,38831.0,0.07835]
[1610090964890,0.07745,38860.0,38850.0,0.13632608]
[1610090966895,0.13632608,38851.0,38839.0,0.07779]
[1610090967294,0.13632608,38851.0,38837.0,0.13632608]
[1610090968596,0.13632608,38851.0,38840.0,0.5]
[1610090968797,0.13632608,38851.0,38850.0,0.13632608]
[1610090969497,0.07745,38860.0,38850.0,0.13632608]
[1610090969695,0.10075721,38892.0,38850.0,0.13632608]
[1610090969899,0.11774219,38872.0,38851.0,0.5612]
[1610090970196,0.22391219,38872.0,38851.0,0.5612]
[1610090970796,0.22391219,38872.0,38859.0,0.13632608]
[1610090971597,0.22391219,38872.0,38859.0,3.08142608]
[1610090972397,0.22391219,38872.0,38860.0,0.5]
[1610090972798,0.13632608,38861.0,38860.0,0.5]
[1610090972997,0.13632608,38861.0,38849.0,0.0871]
[1610090973398,0.13632608,38861.0,38850.0,0.00032525]
[1610090973999,0.13632608,38861.0,38860.0,0.5]
[1610090974199,0.13632608,38861.0,38851.0,0.5]
[1610090974701,0.13632608,38861.0,38860.0,0.5]
[1610090975098,0.13632608,38861.0,38854.0,0.13632608]
[1610090975401,0.13632608,38861.0,38860.0,0.5]
[1610090975699,0.13632608,38861.0,38860.0,0.00032527]
[1610090975898,0.10786,38871.0,38860.0,0.00032527]
[1610090976299,0.10786,38871.0,38856.0,0.00032527]
[1610090976599,0.10786,38871.0,38855.0,0.5]
[1610090976600,0.11774219,38872.0,38861.0,0.00032527]
[1610090976799,0.11774219,38872.0,38855.0,0.5]
[1610090976800,0.11774219,38872.0,38871.0,0.13632608]
[1610090977502,0.11774219,38872.0,38871.0,0.13665132]
[1610090978702,0.11774219,38872.0,38871.0,0.63665132]
[1610090978904,0.25406827,38872.0,38871.0,0.63665132]
[1610090980304,0.25406827,38872.0,38871.0,0.50032524]
[1610090982009,0.25406827,38872.0,38871.0,0.2791]
[1610090982405,0.74566827,38872.0,38871.0,0.1678]
[1610090983704,0.74566827,38872.0,38827.0,3.1606]
[1610090983906,0.74566827,38872.0,38814.0,0.13632608]
[1610090983907,0.25406827,38872.0,38840.0,0.00032537]
[1610090984206,0.25406827,38872.0,38871.0,0.5]
[1610090984607,0.25406827,38872.0,38871.0,0.1749]
[1610090984811,0.25406827,38872.0,38830.0,0.13632608]
[1610090985010,0.25406827,38872.0,38840.0,0.5]
[1610090985611,0.03,38871.0,38841.0,0.0003254]
[1610090986013,0.03,38871.0,38830.0,0.13632608]
[1610090986014,0.03,38871.0,38831.0,0.031864]
[1610090987013,0.03,38871.0,38851.0,0.13632608]
[1610090987212,0.03,38871.0,38852.0,0.00032526]
[1610090987714,0.03,38871.0,38839.0,0.03185553]
[1610090988012,0.03,38871.0,38853.0,0.00032526]
[1610090988213,0.03,38871.0,38840.0,0.00032526]
[1610090988412,0.03,38871.0,38854.0,0.00032528]
[1610090988812,0.13632608,38855.0,38844.0,0.13632608]
[1610090989514,0.13632608,38855.0,38845.0,0.03185705]
[1610090990217,0.13632608,38855.0,38846.0,0.03185933]
[1610090990614,0.13632608,38855.0,38842.0,0.03186138]
[1610090990815,0.09884,38861.0,38847.0,0.03186152]
[1610090991015,0.09884,38861.0,38842.0,0.5]
[1610090991016,0.09884,38861.0,38843.0,0.00032539]
[1610090991220,0.09884,38861.0,38845.0,0.5]
[1610090991616,0.09884,38861.0,38846.0,0.00032537]
[1610090992116,0.09884,38861.0,38846.0,0.03186443]
[1610090993017,0.09884,38861.0,38852.0,0.13632608]
[1610090993518,0.09884,38861.0,38853.0,0.03185241]
[1610090994018,0.09884,38861.0,38854.0,0.00032523]
[1610090994218,0.03,38871.0,38854.0,0.00032523]
[1610090994421,0.03,38871.0,38853.0,0.03185238]
[1610090994819,0.03,38871.0,38855.0,0.00032521]
[1610090995018,0.03,38871.0,38854.0,0.00032521]
[1610090995320,0.03,38871.0,38856.0,0.00032521]
[1610090995518,0.03,38871.0,38855.0,0.00032519]
[1610090995920,0.03,38871.0,38857.0,0.00032519]
[1610090996221,0.03,38871.0,38856.0,0.00032519]
[1610090996419,0.03,38871.0,38858.0,0.00032517]
[1610090996619,0.03,38871.0,38856.0,0.03184593]
[1610090996919,0.03,38871.0,38859.0,0.00032517]
[1610090997121,0.03,38871.0,38856.0,0.03184593]
[1610090997321,0.03,38871.0,38860.0,0.00032517]
[1610090997724,0.03,38871.0,38857.0,0.53184718]
[1610090997926,0.03,38871.0,38858.0,0.03184771]
[1610090998723,0.03,38871.0,38856.0,0.5]
[1610090999023,0.13632608,38857.0,38852.0,0.13632608]
[1610090999523,0.13632608,38857.0,38853.0,0.03184692]
[1610090999723,0.13632608,38857.0,38856.0,0.5]